bitfinex/quotes_ETHUSD_20220106
["timestamp","ask_amount","ask_price","bid_price","bid_amount"]
[1641492865811,0.00284211,3435.3,3435.1,1.68254635]
[1641492866011,0.00284211,3435.3,3435.2,0.422]
[1641492866311,3.69706167,3435.8,3435.6,1.20711311]
[1641492866511,3.69706167,3435.8,3435.7,0.3]
[1641492866712,3.69706167,3435.8,3435.7,2.19039161]
[1641492867111,3.69706167,3435.8,3435.7,1.3]
[1641492867310,3.69706167,3435.8,3435.7,0.3]
[1641492867511,2.02288629,3436.4,3435.7,0.3]
[1641492867512,1.10936092,3436.4,3435.7,0.3]
[1641492867713,1.10936092,3436.4,3435.8,1.45504]
[1641492867913,0.0073895,3436.1,3435.8,1.45504]
[1641492868314,0.00682108,3436.0,3435.8,1.45504]
[1641492868513,0.00682108,3436.0,3435.8,3.72348232]
[1641492868759,0.00625265,3435.9,3435.8,3.72348232]
[1641492869762,0.00625265,3435.9,3435.8,1.45504]
[1641492869962,0.00625265,3435.9,3435.7,1.3]
[1641492870363,0.00568423,3435.8,3435.7,1.3]
[1641492870965,0.00568423,3435.8,3435.6,3.69262564]
[1641492871164,0.00568423,3435.8,3435.4,1.45504]
[1641492871365,0.00511581,3435.7,3435.1,2.18283]
[1641492871561,0.00511581,3435.7,3435.0,0.07536318]
[1641492871761,0.00454738,3435.6,3435.0,0.07536318]
[1641492871962,0.00454738,3435.6,3435.1,0.72767]
[1641492872161,0.00397896,3435.5,3435.1,0.72767]
[1641492872416,0.00397896,3435.5,3435.2,1.2241048]
[1641492872613,0.00341054,3435.4,3435.2,1.5241048]
[1641492873007,0.00284211,3435.3,3435.2,1.5241048]
[1641492873208,0.00284211,3435.3,3435.2,3.30687789]
[1641492874411,0.00284211,3435.3,3435.2,4.30687789]
[1641492879257,0.00284211,3435.3,3435.2,3.30687789]
[1641492881711,0.00284211,3435.3,3435.2,4.30687789]
[1641492886871,0.00284211,3435.3,3435.2,5.76207789]
[1641492887271,0.00284211,3435.3,3435.2,3.9793048]
[1641492888717,0.00284211,3435.3,3435.2,5.88375286]
[1641492890218,0.00284211,3435.3,3435.2,3.9793048]
[1641492891265,0.00284211,3435.3,3435.2,6.1116064]
[1641492892065,0.00284211,3435.3,3435.2,2.4552]
[1641492892265,0.00284211,3435.3,3435.1,1.45531]
[1641492892266,0.00284211,3435.3,3434.8,1.0]
[1641492892564,0.00227369,3435.2,3434.6,0.00113685]
[1641492892967,0.00170527,3435.1,3434.6,0.00113685]
[1641492893165,0.00170527,3435.1,3434.6,2.26572229]
[1641492893365,2.16082029,3435.4,3434.6,2.26572229]
[1641492893366,2.06252556,3435.4,3434.6,2.26572229]
[1641492893567,2.06252556,3435.4,3434.7,0.0022737]
[1641492893767,0.00113684,3435.3,3434.7,0.0022737]
[1641492894171,0.00113684,3435.3,3434.6,0.00284212]
[1641492895008,0.00113684,3435.3,3434.2,0.00511581]
[1641492895208,0.00113684,3435.3,3434.0,1.7621931]
[1641492895209,0.00113684,3435.3,3434.1,0.00568424]
[1641492895608,0.7279479,3435.1,3434.1,0.00568424]
[1641492895808,2.51213235,3435.1,3434.1,1.10105334]
[1641492896309,2.46213235,3435.1,3434.2,0.00511581]
[1641492897512,1.74693667,3435.1,3434.2,0.00511581]
[1641492897710,29.47850481,3435.1,3434.2,0.00511581]
[1641492897914,46.59850481,3435.1,3434.2,0.00511581]
[1641492898210,49.96830481,3435.1,3433.4,2.44070164]
[1641492898410,49.96830481,3435.1,3433.4,0.0096632]
[1641492898411,50.39030481,3435.1,3433.4,0.0096632]
[1641492898667,50.39030481,3435.1,3433.5,0.00909478]
[1641492898870,1.83615213,3434.4,3433.5,3.48771181]
[1641492899070,1.83615213,3434.4,3433.6,0.00852635]
[1641492899970,1.83615213,3434.4,3433.2,0.01080005]
[1641492900171,1.83615213,3434.4,3433.4,1.2231779]
[1641492900371,1.83615213,3434.4,3433.5,1.66070221]
[1641492900571,1.0,3434.9,3433.5,1.96979699]
[1641492900572,0.03638715,3434.7,3433.5,1.96979699]
[1641492900773,3.79174623,3435.0,3433.6,0.00852635]
[1641492900971,3.7529,3435.0,3433.6,0.00852635]
[1641492901877,0.7279945,3434.9,3433.6,0.00852635]
[1641492902072,2.2016465,3434.8,3433.6,0.00852635]
[1641492902270,2.2016465,3434.8,3434.1,1.74853297]
[1641492902510,0.7279945,3434.9,3434.1,2.04853297]
[1641492902710,0.7279945,3434.9,3434.2,0.00511581]
[1641492902909,0.76223373,3434.9,3434.2,0.00511581]
[1641492903310,0.7280383,3434.6,3434.2,0.00511581]
[1641492903510,0.76183578,3434.6,3433.6,0.00852635]
[1641492903712,1.92373142,3434.4,3433.6,1.62015022]
[1641492904110,1.92373142,3434.4,3433.7,0.00795793]
[1641492905211,0.72799,3434.9,3433.7,0.00795793]
[1641492905412,0.76421421,3434.9,3433.7,0.00795793]
[1641492905610,0.72799,3434.9,3433.7,0.00795793]
[1641492905811,37.13736814,3435.1,3433.7,0.00795793]
[1641492906266,1.89070427,3435.0,3433.7,0.00795793]
[1641492906663,0.03936908,3434.9,3433.7,0.00795793]
[1641492906865,1.89070427,3435.0,3433.7,0.00795793]
[1641492907065,1.89070427,3435.0,3433.6,0.00852635]
[1641492907264,3.57436837,3434.9,3433.6,0.00852635]
[1641492907565,0.7280654,3434.6,3433.7,2.36429043]
[1641492907966,2.00509341,3434.4,3433.8,0.00738951]
[1641492908467,2.00509341,3434.4,3433.6,0.00852635]
[1641492908468,0.7281606,3434.1,3433.6,0.00852635]
[1641492908665,0.03928342,3434.1,3433.6,0.00852635]
[1641492908865,17.12,3434.2,3433.1,0.01136847]
[1641492909066,0.72826,3433.9,3433.1,0.01136847]
[1641492909266,0.72826,3433.9,3433.1,2.09403075]
[1641492909465,0.15910504,3433.5,3433.1,2.09403075]
[1641492909768,0.15910504,3433.5,3433.2,0.01080005]
[1641492911810,0.15910504,3433.5,3432.6,0.01421059]
[1641492912413,2.00017515,3433.3,3432.6,0.01421059]
[1641492912612,2.00017515,3433.3,3432.5,0.01477901]
[1641492912911,2.46569414,3433.4,3432.5,0.01477901]
[1641492913111,1.0,3433.3,3432.5,0.01477901]
[1641492913311,3.41569414,3433.4,3432.5,0.01477901]
[1641492913511,2.552266,3433.3,3432.5,0.01477901]
[1641492913766,3.552266,3433.3,3432.5,0.01477901]
[1641492913963,1.0,3433.3,3432.5,0.01477901]
[1641492914166,1.0,3433.4,3432.5,0.01477901]
[1641492914363,2.41419387,3433.3,3432.5,0.01477901]
[1641492914563,1.0,3433.4,3432.5,0.01477901]
[1641492914763,0.07955252,3432.9,3432.5,0.01477901]
[1641492916263,0.07955252,3432.9,3432.2,0.01648428]
[1641492916866,2.00435442,3432.9,3432.2,0.01648428]
[1641492917066,2.50968968,3432.8,3432.2,0.31648428]
[1641492917519,2.50968968,3432.8,3432.3,0.01591586]
[1641492917814,1.58961705,3432.8,3432.3,0.01591586]
[1641492918215,3.4163815,3432.8,3432.3,0.01591586]
[1641492918417,0.422,3432.7,3432.3,0.01591586]
[1641492918720,0.422,3432.7,3431.6,3.76487391]
[1641492918721,0.72866,3432.4,3431.6,3.76487391]
[1641492918920,20.77204322,3432.3,3431.6,3.51707391]
[1641492919117,21.07204322,3432.3,3431.7,0.00284212]
[1641492919321,1.0,3432.2,3431.7,0.00284212]
[1641492919518,2.62931494,3432.1,3431.5,0.00397897]
[1641492919815,17.87916667,3431.9,3431.3,6.2]
[1641492920016,17.87916667,3431.9,3430.9,4.92821537]
[1641492920017,17.84874,3431.7,3430.9,4.92821537]
[1641492920223,3.59965522,3431.6,3429.3,0.01256232]
[1641492920420,3.59965522,3431.6,3431.0,0.00284211]
[1641492920421,9.69752251,3431.6,3431.0,0.00284211]
[1641492920617,12.88565522,3431.6,3431.0,0.00284211]
[1641492921018,8.286,3431.6,3431.4,1.72903292]
[1641492921263,1.2206,3431.6,3431.4,1.72903292]
[1641492921466,1.2206,3431.6,3431.0,0.00284211]
[1641492921467,2.55003285,3431.5,3431.0,0.00284211]
[1641492921663,4.05095671,3431.8,3431.0,0.00284211]
[1641492921864,0.00113685,3431.7,3431.0,0.00284211]
[1641492922066,0.00113685,3431.7,3430.3,0.00682108]
[1641492922464,0.72987185,3431.7,3430.3,0.00682108]
[1641492922664,2.98457985,3431.6,3431.0,2.07094946]
[1641492923065,1.0,3431.5,3431.1,0.00227369]
[1641492923465,2.4480433,3431.4,3431.1,0.00227369]
[1641492923671,3.49839798,3431.4,3431.1,0.00227369]
[1641492924067,3.49839798,3431.4,3429.6,0.01080004]
[1641492924068,17.542,3431.3,3429.6,0.01080004]
[1641492924266,3.14247812,3431.2,3429.6,0.01080004]
[1641492924468,0.7288899,3431.0,3429.6,0.01080004]
[1641492924667,2.98630096,3430.9,3430.0,2.00464221]
[1641492924936,0.03150304,3431.0,3430.0,2.00464221]
[1641492925119,1.0,3431.0,3430.1,0.00795793]
[1641492925422,0.15910504,3430.6,3430.1,0.00795793]
[1641492927221,0.15910504,3430.6,3430.1,0.00065793]
[1641492927625,1.70398428,3430.0,3429.5,0.6874028]
[1641492927824,2.43671158,3429.9,3429.5,2.8e-06]
[1641492928028,0.422,3429.9,3429.6,0.00284211]
[1641492928222,17.542,3429.9,3429.6,0.00284211]
[1641492928523,18.492,3429.9,3429.6,0.00284211]
[1641492929668,0.72916,3429.8,3429.6,0.00284211]
[1641492929871,1.372,3429.9,3429.6,0.00284211]
[1641492930472,1.70398428,3430.0,3429.8,1.20666744]
[1641492930872,1.70398428,3430.0,3429.9,0.00113684]
[1641492931873,1.70398428,3430.0,3429.9,1.99398794]
[1641492935821,1.86308932,3430.0,3429.9,1.99398794]
[1641492936265,1.86308932,3430.0,3429.9,2.72263794]
[1641492937264,1.86308932,3430.0,3429.9,1.99398794]
[1641492939666,6.86308932,3430.0,3429.9,1.99398794]
[1641492940413,6.86308932,3430.0,3429.9,8.794e-05]
[1641492941214,9.33088718,3430.0,3429.9,8.794e-05]
[1641492941415,9.33088718,3430.0,3429.9,1.25042389]
[1641492941615,9.33088718,3430.0,3429.9,3.46402749]
[1641492941814,9.33088718,3430.0,3429.9,3.76402749]
[1641492942214,7.05788718,3430.0,3429.9,3.76402749]
[1641492942415,0.0022737,3430.5,3430.1,0.6556698]
[1641492942616,0.0022737,3430.5,3430.4,7.16217858]
[1641492942915,1.47918033,3430.9,3430.5,3.27670562]
[1641492943120,1.47918033,3431.6,3430.8,0.01251767]
[1641492943321,1.47918033,3431.6,3431.3,1.17398604]
[1641492943668,1.47918033,3431.6,3431.4,0.3]
[1641492944063,1.47918033,3431.6,3431.5,7.072]
[1641492944365,1.47918033,3431.6,3431.5,7.08421906]
[1641492944366,0.0073895,3431.6,3431.5,7.08421906]
[1641492944570,0.0073895,3431.6,3431.5,8.08421906]
[1641492946266,0.0073895,3431.6,3431.5,10.65703091]
[1641492946463,0.0073895,3431.6,3431.5,2.16244906]
[1641492946673,0.0073895,3431.6,3431.5,1.16244906]
[1641492946867,0.0073895,3431.6,3431.5,2.16244906]
[1641492947516,0.01959871,3431.6,3431.0,1.62319987]
[1641492947921,0.00682107,3431.5,3431.0,1.62319987]
[1641492948316,0.00625265,3431.4,3431.0,1.62319987]
[1641492948516,0.00625265,3431.4,3431.1,1.13383593]
[1641492948818,0.00568423,3431.3,3431.1,1.13383593]
[1641492949219,0.0051158,3431.2,3431.1,1.13383593]
[1641492950419,0.0051158,3431.2,3431.0,1.62319987]
[1641492950627,1.54923758,3431.0,3429.5,2.8e-06]
[1641492950824,4.34045724,3430.9,3429.5,2.8e-06]
[1641492951022,4.64386777,3430.9,3429.6,0.00397897]
[1641492951265,1.73175211,3430.8,3429.6,0.00397897]
[1641492951475,3.65816118,3430.7,3429.9,1.36643451]
[1641492951669,1.0,3430.6,3429.9,1.36643451]
[1641492951868,1.00170526,3430.6,3430.4,2.17527627]
[1641492952071,0.00113684,3430.5,3430.4,2.17527627]
[1641492952274,3.12537924,3430.7,3430.4,2.17527627]
[1641492952469,0.70256763,3430.7,3430.4,2.17527627]
[1641492952869,3.18374983,3430.7,3430.4,2.17527627]
[1641492953069,0.70256763,3430.7,3430.4,2.17527627]
[1641492953670,1.70256763,3430.7,3430.4,2.17527627]
[1641492953869,0.70256763,3430.7,3430.4,2.17527627]
[1641492954270,5.61337448,3431.0,3430.5,1.33348029]
[1641492954271,1.54923758,3431.0,3430.5,1.33348029]
[1641492954470,1.0,3430.9,3430.5,1.33348029]
[1641492954671,0.00113684,3430.7,3430.5,1.33348029]
[1641492955113,0.00227369,3430.9,3430.5,1.33348029]
[1641492955513,1.54923758,3431.0,3430.5,1.33348029]
[1641492955514,0.00170527,3430.8,3430.5,1.33348029]
[1641492955914,0.00227369,3430.9,3430.5,1.33348029]
[1641492956315,0.00170527,3430.8,3430.5,1.33348029]
[1641492956717,0.00227369,3430.9,3430.5,1.33348029]
[1641492957115,0.00170527,3430.8,3430.5,1.33348029]
[1641492957520,0.00227369,3430.9,3430.5,1.33348029]
[1641492957917,0.00170527,3430.8,3430.5,1.33348029]
[1641492958317,0.00227369,3430.9,3430.5,1.33348029]
[1641492958771,0.00170527,3430.8,3430.5,1.33348029]
[1641492959171,0.00227369,3430.9,3430.5,1.33348029]
[1641492959571,0.00170527,3430.8,3430.5,1.33348029]
[1641492959772,0.00170527,3430.8,3430.5,1.63348029]
[1641492959971,0.00227369,3430.9,3430.5,1.63348029]
[1641492960271,0.00170527,3430.8,3430.5,1.63348029]
[1641492960672,1.54923758,3431.0,3430.5,1.33348029]
[1641492960673,0.00227369,3430.9,3430.5,1.33348029]
[1641492960871,0.00227369,3430.9,3430.5,1.63348029]
[1641492961077,0.00170527,3430.8,3430.4,2.17527627]
[1641492961473,1.54923758,3431.0,3430.4,2.17527627]
[1641492961474,0.00227369,3430.9,3430.4,2.17527627]
[1641492961877,0.00170527,3430.8,3430.4,2.17527627]
[1641492962273,0.00227369,3430.9,3430.4,3.3682925]
[1641492962716,0.00170527,3430.8,3430.4,3.3682925]
[1641492962919,0.00170527,3430.8,3430.4,2.17527627]
[1641492963118,0.00227369,3430.9,3430.4,2.17527627]
[1641492963517,0.00170527,3430.8,3430.4,2.17527627]
[1641492963918,0.00227369,3430.9,3430.4,2.17527627]
[1641492964317,0.00170527,3430.8,3430.4,2.17527627]
[1641492964718,0.00227369,3430.9,3430.4,2.17527627]
[1641492965219,0.00170527,3430.8,3430.4,2.17527627]
[1641492965619,2.42831851,3430.9,3430.0,0.00170528]
[1641492965824,0.422,3430.8,3430.0,0.00170528]
[1641492966019,0.422,3430.8,3429.5,2.8e-06]
[1641492966020,1.45785,3430.7,3429.6,0.00511581]
[1641492966284,0.422,3430.6,3429.6,0.00511581]
[1641492966688,0.72893,3430.3,3429.7,2.25398777]
[1641492966885,0.422,3430.2,3429.7,2.25398777]
[1641492967089,0.422,3430.2,3429.8,0.00397897]
[1641492967687,1.09470923,3430.3,3430.0,1.17245211]
[1641492968087,1.09470923,3430.3,3430.1,0.0022737]
[1641492968286,1.09470923,3430.4,3430.1,0.0022737]
[1641492968688,1.09470923,3430.4,3430.3,2.13954928]
[1641492969087,1.09470923,3430.4,3430.3,2.14068613]
[1641492969592,5.0,3430.7,3430.3,2.14068613]
[1641492969787,5.0,3430.7,3430.3,0.00113685]
[1641492970012,1.0,3430.6,3430.3,0.00113685]
[1641492970213,2.1517,3430.6,3429.6,0.00511581]
[1641492970417,2.51690195,3430.5,3429.6,0.00511581]
[1641492970813,4.36400189,3430.5,3429.6,0.00511581]
[1641492971015,3.24578195,3430.5,3429.6,0.00511581]
[1641492971512,3.27842115,3430.5,3429.6,0.00511581]
[1641492971914,4.37313038,3430.5,3429.6,0.00511581]
[1641492974263,1.09470923,3430.5,3429.6,0.73388581]
[1641492974661,1.09470923,3430.5,3429.7,0.00454739]
[1641492975168,5.0,3430.7,3430.2,1.82627085]
[1641492975562,5.0,3430.7,3430.3,0.00113685]
[1641492977518,1.0,3430.6,3429.6,0.00511581]
[1641492977715,3.56539987,3430.6,3429.6,0.00511581]
[1641492978113,1.68070124,3430.2,3429.6,0.00511581]
[1641492978518,0.03787339,3430.3,3429.6,0.00511581]
[1641492978719,0.72894,3430.3,3429.6,0.00511581]
[1641492979716,0.03384357,3430.4,3429.6,0.00511581]
[1641492979916,1.03384357,3430.4,3429.6,0.00511581]
[1641492980515,1.0,3430.5,3429.6,0.00511581]
[1641492980918,7.33800923,3430.7,3429.9,1.10986258]
[1641492981182,6.09470923,3430.7,3429.9,1.10986258]
[1641492981369,6.09470923,3430.7,3430.0,0.00284212]
[1641492981769,5.0,3430.7,3430.5,2.12264365]
[1641492981970,5.0,3430.7,3430.0,0.73154212]
[1641492982371,5.0,3430.7,3430.1,0.0022737]
[1641492983371,5.0,3430.7,3430.5,1.34097581]
[1641492983572,2.46741727,3430.6,3430.5,1.34097581]
[1641492983972,2.46741727,3430.6,3430.1,0.0022737]
[1641492984172,2.46741727,3430.6,3430.2,1.6011741]
[1641492984574,2.46741727,3430.6,3430.3,0.00113685]
[1641492984777,5.0,3430.7,3430.3,0.00113685]
[1641492985615,2.46732484,3430.6,3430.3,0.00113685]
[1641492986418,2.46732484,3430.6,3429.9,0.00341054]
[1641492986419,4.89008704,3430.6,3429.9,0.00341054]
[1641492986716,5.96127443,3430.6,3429.6,0.00511581]
[1641492986916,7.41909443,3430.6,3429.6,0.00511581]
[1641492987119,2.03975623,3430.2,3429.6,0.00511581]
[1641492987318,7.41909443,3430.6,3429.6,0.00511581]
[1641492987319,2.49739907,3430.1,3429.6,0.00511581]
[1641492987518,0.7289893,3430.0,3429.6,0.00511581]
[1641492987722,0.75998604,3430.0,3429.6,0.00511581]
[1641492987921,1.1333,3429.9,3429.6,0.00511581]
[1641492988319,3.16174573,3429.9,3429.6,0.00511581]
[1641492988519,3.89075573,3429.9,3429.6,0.00511581]
[1641492988773,1.7290394,3429.8,3429.6,0.00511581]
[1641492989672,6.60420824,3429.8,3429.6,0.00511581]
[1641492989872,6.60108617,3429.8,3429.5,2.8e-06]
[1641492990073,4.14636424,3429.8,3429.5,2.8e-06]
[1641492990478,1.6790394,3429.8,3429.5,2.8e-06]
[1641492990774,0.6790394,3429.8,3429.5,2.8e-06]
[1641492992176,0.70985691,3429.8,3429.5,2.8e-06]
[1641492992429,0.6790394,3429.8,3429.5,2.8e-06]
[1641492993520,0.71527757,3429.8,3429.5,2.8e-06]
[1641492993917,0.6790394,3429.8,3429.5,2.8e-06]
[1641492995721,1.1333,3429.9,3429.5,2.8e-06]
[1641492996163,0.00113684,3429.8,3429.5,2.8e-06]
[1641492996969,0.00113684,3429.8,3429.6,1.38920571]
[1641492997366,2.4689893,3429.8,3429.6,1.38920571]
[1641492997965,2.4689893,3429.8,3429.5,2.8e-06]
[1641492998166,0.00113684,3429.8,3429.5,2.8e-06]
[1641492999266,2.46785246,3429.7,3429.5,2.8e-06]
[1641492999914,5.00113684,3429.8,3429.5,2.8e-06]
[1641493008717,5.00113684,3429.8,3429.6,1.45754]
[1641493008921,5.00113684,3429.8,3429.6,1.75754]
[1641493009119,5.00113684,3429.8,3429.6,1.45754]
[1641493009417,5.00113684,3429.8,3429.6,1.75754]
[1641493009820,5.00113684,3429.8,3429.7,0.72876]
[1641493010821,5.00113684,3429.8,3429.7,1.02876]
[1641493011481,5.00113684,3429.8,3429.7,0.3]
[1641493011675,5.00113684,3429.8,3429.5,0.7288728]
[1641493014278,5.00113684,3429.8,3429.5,2.8e-06]
[1641493015326,2.46792962,3429.7,3429.5,2.8e-06]
[1641493016632,2.46792962,3429.7,3428.3,2.09399925]
[1641493016633,2.61830288,3429.6,3428.3,0.07589928]
[1641493016832,0.422,3429.5,3428.3,0.07589928]
[1641493017032,1.49298802,3429.4,3428.6,0.00568424]
[1641493017229,0.422,3429.3,3428.6,0.00568424]
[1641493017428,1.63414254,3428.6,3427.6,1.61239414]
[1641493017629,0.72942,3428.3,3427.6,1.61807837]
[1641493018028,0.72942,3428.3,3427.6,0.00568423]
[1641493018227,0.72943,3428.2,3427.6,0.00568423]
[1641493018427,1.46018949,3428.5,3427.6,0.00568423]
[1641493018868,0.72945,3428.1,3427.6,0.00568423]
[1641493019672,0.7672028,3428.0,3427.6,0.00568423]
[1641493019870,0.67949,3427.9,3427.6,0.00568423]
[1641493020473,0.0377328,3428.0,3427.6,0.00568423]
[1641493020772,2.45896,3428.3,3427.6,0.00568423]
[1641493020974,1.72942,3428.3,3427.6,0.00568423]
[1641493021170,2.5884746,3428.2,3427.6,0.00568423]
[1641493021570,1.0,3428.1,3427.6,0.00568423]
[1641493021775,2.45971838,3428.0,3427.8,2.12114462]
[1641493021972,1.03696509,3428.1,3427.8,2.12114462]
[1641493021973,1.0,3428.1,3427.8,2.12114462]
[1641493022173,2.48704562,3428.0,3427.9,0.00397896]
[1641493022615,3.48704562,3428.0,3427.9,0.00397896]
[1641493022818,2.48704562,3428.0,3427.9,0.00397896]
[1641493023014,3.48704562,3428.0,3427.9,0.00397896]
[1641493023214,5.68704562,3428.0,3427.9,0.00397896]
[1641493023414,6.68704562,3428.0,3427.9,0.00397896]
[1641493023615,9.15668864,3428.0,3427.9,0.00397896]
[1641493025816,5.95668864,3428.0,3427.9,0.00397896]
[1641493026275,3.48704562,3428.0,3427.9,0.00397896]
[1641493026978,5.95692695,3428.0,3427.9,0.00397896]
[1641493027878,4.95692695,3428.0,3427.9,0.00397896]
[1641493028077,2.46988133,3428.0,3427.9,0.00397896]
[1641493028474,2.46988133,3428.0,3427.8,0.00454739]
[1641493029679,5.0,3428.0,3427.8,0.00454739]
[1641493030525,5.0,3428.0,3427.6,0.58644405]
[1641493030920,5.0,3428.0,3427.9,1.01170618]
[1641493031326,5.00113685,3428.0,3427.9,1.01170618]
[1641493031724,5.00113685,3428.0,3427.9,1.02303166]
[1641493032524,4.99113685,3428.0,3427.9,1.02303166]
[1641493034768,7.46009442,3428.0,3427.9,1.02303166]
[1641493035470,4.99113685,3428.0,3427.9,3.44129189]
[1641493035871,4.99113685,3428.0,3427.9,3.74129189]
[1641493036072,3.56886685,3428.0,3427.9,3.74129189]
[1641493037916,3.56886685,3428.0,3427.9,1.32303166]
[1641493039116,3.56886685,3428.0,3427.9,2.32303166]
[1641493039519,3.56886685,3428.0,3427.9,2.74503166]
[1641493041970,3.56886685,3428.0,3427.9,5.22048393]
[1641493042268,3.56886685,3428.0,3427.9,1.74503166]
[1641493046417,3.56886685,3428.0,3427.9,3.20321166]
[1641493046821,3.56886685,3428.0,3427.9,3.21613502]
[1641493047220,3.56886685,3428.0,3427.9,5.70117854]
[1641493047822,3.56886685,3428.0,3427.9,6.70117854]
[1641493048126,1.09470923,3429.2,3428.6,0.72888]
[1641493048322,1.09470923,3429.2,3428.7,0.422]
[1641493048522,0.00625266,3429.1,3428.7,0.422]
[1641493048968,0.00568424,3429.0,3428.8,2.11904608]
[1641493049168,0.00568424,3429.0,3428.9,5.772]
[1641493049369,1.09470923,3429.4,3428.9,8.61482127]
[1641493049569,0.70609712,3430.0,3428.9,2.53600347]
[1641493049770,0.70609712,3430.0,3429.0,1.0]
[1641493049771,0.00738951,3429.3,3429.0,1.0]
[1641493049968,0.00738951,3429.3,3429.2,1.21656591]
[1641493050169,0.70609712,3430.0,3429.5,0.72881]
[1641493050372,0.70609712,3430.0,3429.6,2.91711716]
[1641493050570,2.21400224,3430.6,3429.6,2.91711716]
[1641493050571,0.0096632,3429.7,3429.6,2.91711716]
[1641493051369,2.47776688,3429.7,3429.6,2.91711716]
[1641493058068,2.47776688,3429.7,3429.6,3.21711716]
[1641493059470,2.47776688,3429.7,3429.6,2.91711716]
[1641493060921,2.47776688,3429.7,3429.6,3.21711716]
[1641493062024,2.47776688,3429.7,3429.6,5.68310886]
[1641493062221,2.47776688,3429.7,3429.6,2.91711716]
[1641493062624,0.0096632,3429.7,3429.6,2.91711716]
[1641493062822,1.11060488,3430.4,3429.6,2.91711716]
[1641493063224,1.11060488,3430.4,3429.7,1.15054]
[1641493063422,1.11060488,3430.4,3429.7,2.31674514]
[1641493063671,1.11060488,3430.6,3429.7,3.61674514]
[1641493063876,1.11060488,3430.6,3429.7,2.61674514]
[1641493064571,1.11060488,3430.6,3429.7,3.61674514]
[1641493064772,4.17153,3429.8,3429.7,3.61674514]
[1641493065374,1.11060488,3430.7,3430.5,2.41247237]
[1641493065674,1.11060488,3430.7,3430.5,2.71247237]
[1641493067719,1.11060488,3430.7,3430.5,2.41247237]
[1641493068523,1.11060488,3430.7,3430.6,0.01131672]
[1641493068922,1.11628911,3430.7,3430.6,0.01131672]
[1641493070224,0.00568423,3430.7,3430.6,0.01131672]
[1641493070423,2.47328885,3430.7,3430.6,0.01131672]
[1641493070624,2.47328885,3430.7,3430.2,0.71671483]
[1641493070824,2.47328885,3430.7,3430.3,0.72869]
[1641493071023,0.00511581,3430.6,3430.3,0.72869]
[1641493071471,2.46760462,3430.7,3430.3,0.72869]
[1641493071472,0.00454739,3430.5,3430.3,0.72869]
[1641493071870,0.00397896,3430.4,3430.3,0.72869]
[1641493072077,2.22496191,3430.4,3430.3,0.72869]
[1641493072973,2.47158358,3430.4,3430.2,0.71671483]
[1641493073373,0.00341054,3430.3,3430.2,0.71671483]
[1641493073773,0.00341054,3430.3,3430.2,1.01671483]
[1641493073973,0.00341054,3430.3,3430.2,0.71671483]
[1641493074175,0.00341054,3430.3,3430.2,1.01671483]
[1641493074372,0.00341054,3430.3,3430.2,0.71671483]
[1641493074574,2.47101516,3430.3,3430.2,1.01671483]
[1641493075625,2.47101516,3430.3,3429.8,2.9148331]
[1641493075826,2.47101516,3430.3,3429.6,1.53344885]
[1641493076028,0.00284212,3430.2,3429.6,1.53344885]
[1641493076226,0.00284212,3430.2,3429.6,0.37591885]
[1641493076425,0.00227369,3430.1,3429.6,0.37591885]
[1641493076629,0.00227369,3430.1,3429.6,0.07591885]
[1641493076831,1.4806119,3429.8,3429.6,0.07591885]
[1641493077228,1.4806119,3429.8,3429.5,1.02887]
[1641493077627,1.4806119,3429.8,3429.5,1.7577387]
[1641493077827,3.94821652,3429.8,3429.5,1.7577387]
[1641493078665,1.11061987,3429.6,3429.5,1.4577387]
[1641493079068,1.11061987,3429.6,3429.5,3.34984107]
[1641493079269,1.11061987,3429.6,3429.5,3.64984107]
[1641493079480,1.11232514,3430.0,3429.5,3.64984107]
[1641493079669,1.11232514,3430.0,3429.7,0.72871]
[1641493079868,0.00113685,3429.9,3429.7,0.72871]
[1641493080069,0.00113685,3429.9,3429.7,1.02871]
[1641493080570,0.00113685,3429.9,3429.8,1.06352013]
[1641493081773,0.00113685,3429.9,3429.7,2.4861422]
[1641493083321,0.00113685,3429.9,3429.8,1.13747505]
[1641493086374,0.00113685,3429.9,3429.8,6.65947505]
[1641493086772,2.46760462,3430.1,3429.8,1.55947505]
[1641493086968,2.46760462,3430.1,3430.0,0.72855]
[1641493087171,2.46760462,3430.1,3430.0,1.15055]
[1641493087970,0.00227369,3430.3,3430.0,1.15055]
[1641493088171,0.00227369,3430.3,3430.1,0.72851]
[1641493088370,0.00170527,3430.2,3430.1,1.15051]
[1641493088670,0.00170527,3430.2,3430.1,1.45051]
[1641493089272,0.00170527,3430.2,3430.1,5.96825352]
[1641493089472,3.6298,3430.7,3430.4,0.7285]
[1641493089673,1.11061987,3430.9,3430.6,0.72853]
[1641493090418,1.11061987,3430.9,3430.7,2.15607179]
[1641493090624,1.11061987,3430.9,3430.7,3.56897596]
[1641493090817,1.11061987,3430.9,3430.8,0.72851]
[1641493091018,2.65985745,3431.0,3430.8,0.72851]
[1641493091220,0.00397896,3430.9,3430.8,0.72851]
[1641493093524,0.00397896,3430.9,3430.7,2.88458029]
[1641493093770,0.00397896,3430.9,3430.7,0.7285085]
[1641493093970,0.00341054,3430.8,3430.5,0.7285779]
[1641493094172,0.00341054,3430.8,3430.4,1.45704]
[1641493094173,0.00341054,3430.8,3430.3,0.422]
[1641493094371,0.00284211,3430.7,3430.3,0.422]
[1641493094774,0.00227369,3430.6,3430.3,0.422]
[1641493094972,0.00227369,3430.6,3430.3,2.61306949]
[1641493095174,0.00170527,3430.5,3430.3,2.61306949]
[1641493095574,0.00113684,3430.4,3430.3,2.61306949]
[1641493095975,0.00113684,3430.4,3430.3,0.422]
[1641493096677,0.00113684,3430.4,3429.7,1.45735]
[1641493096878,0.00113684,3430.4,3429.3,0.422]
[1641493097078,0.00113684,3430.4,3429.8,0.0022737]
[1641493097283,1.11175671,3430.4,3429.5,1.26392937]
[1641493097539,1.11175671,3430.4,3429.7,0.00284212]
[1641493097743,1.11175671,3430.4,3429.6,0.00341054]
[1641493098240,5.61987509,3429.7,3429.6,0.00341054]
[1641493098438,1.1797,3430.3,3429.6,0.00341054]
[1641493098735,1.1797,3430.3,3428.9,0.00738951]
[1641493099039,0.72898,3429.9,3428.9,0.00738951]
[1641493099235,0.72898,3429.9,3429.0,1.22668229]
[1641493099436,2.54611532,3429.9,3429.0,1.22668229]
[1641493099636,2.54611532,3429.9,3429.1,0.00625266]
[1641493100236,3.65673519,3429.9,3429.1,0.00625266]
[1641493100637,0.72897,3429.8,3429.1,0.00625266]
[1641493105024,0.72901,3429.6,3429.1,0.00625266]
[1641493105921,0.72901,3429.6,3428.6,0.00909478]
[1641493106122,0.72901,3429.6,3428.7,0.7289807]
[1641493106322,5.55218987,3429.8,3428.7,0.7289807]
[1641493106524,5.55218987,3429.8,3428.8,0.00795793]
[1641493107326,4.44157,3429.8,3428.8,0.00795793]